fUST/lending_fUST_20241201
["ID","MTS","AMOUNT","RATE_DAILY","PERIOD"]
[343883537,1732983069171,-2025.38,0.00029863,3]
[343883538,1732983069188,-500.0,0.00029863,3]
[343883539,1732983069205,-598.57,0.00029863,3]
[343883540,1732983069220,-1751.25,0.00029863,3]
[343883541,1732983069234,-500.0,0.00029863,3]
[343883542,1732983069251,-737.73,0.00029863,3]
[343883543,1732983069283,-1526.2,0.00029863,2]
[343883544,1732983069315,-500.29,0.00029863,3]
[343883545,1732983069335,-4675.02,0.00029863,3]
[343883546,1732983069355,-801.78,0.00029863,3]
[343883547,1732983069371,-573.56,0.00029863,3]
[343883548,1732983069390,-5819.65299312,0.00029884,7]
[343883549,1732983069408,-85000.0,0.0003,10]
[343883550,1732983069424,-16931.57744466,0.0003,15]
[343883551,1732983069439,-1500.0,0.0003,2]
[343883552,1732983069455,-1024.19838198,0.0003,7]
[343883553,1732983069471,-3085.533804,0.0003,30]
[343883554,1732983069486,-134100.40482561,0.0003,30]
[343883555,1732983069502,-159.0,0.0003,2]
[343883556,1732983069516,-160.0,0.0003,2]
[343883557,1732983069531,-1699.09416693,0.0003,8]
[343883558,1732983069546,-605.01487711,0.0003,2]
[343883559,1732983069561,-167.11575,0.0003,2]
[343883560,1732983069575,-168.461,0.0003,2]
[343883561,1732983069590,-151.0,0.0003,7]
[343883562,1732983069605,-168.46,0.0003,2]
[343883563,1732983069620,-151.0,0.0003,7]
[343883564,1732983069635,-241.0,0.0003,2]
[343883565,1732983069649,-5000.0,0.00030084,27]
[343883566,1732983069666,-9434.67138717,0.00030129,25]
[343883567,1732983069681,-500.0,0.00030136,6]
[343883568,1732983069696,-479.27167814,0.00030136,3]
[343883569,1732983069805,-500.0,0.00030136,3]
[343883570,1732983069816,-851.42,0.00030136,3]
[343883571,1732983069826,-550.61,0.00030136,3]
[343883572,1732983069836,-527.99,0.00030136,3]
[343883573,1732983069846,-873.22,0.00030136,3]
[343883574,1732983069855,-500.0,0.00030136,3]
[343883575,1732983069865,-526.13,0.00030136,3]
[343883576,1732983069875,-500.0,0.00030136,3]
[343883577,1732983069885,-644.87,0.00030136,3]
[343883578,1732983069894,-570.52,0.00030136,3]
[343883579,1732983069904,-500.0,0.00030136,3]
[343883580,1732983069913,-571.17,0.00030136,3]
[343883581,1732983069923,-500.0,0.00030136,3]
[343883582,1732983069933,-572.47,0.00030136,3]
[343883583,1732983069942,-524.73,0.00030136,3]
[343883584,1732983069952,-1331.31,0.00030136,3]
[343883585,1732983069961,-501.61,0.00030136,3]
[343883586,1732983069971,-3084.57,0.00030136,3]
[343883587,1732983069980,-648.88,0.00030136,3]
[343883588,1732983069990,-804.95,0.00030136,3]
[343883589,1732983069999,-500.0,0.00030136,3]
[343883590,1732983070010,-548.5,0.00030136,3]
[343883591,1732983070019,-500.0,0.00030136,3]
[343883592,1732983070029,-729.85,0.00030136,3]
[343883593,1732983070039,-1025.04,0.00030136,3]
[343883594,1732983070051,-558.52,0.00030136,3]
[343883595,1732983070060,-901.86,0.00030136,3]
[343883596,1732983070070,-8674.29,0.00030136,3]
[343883597,1732983070079,-1839.97,0.00030136,3]
[343883598,1732983070089,-834.16,0.00030136,3]
[343883599,1732983070099,-3724.18,0.00030136,3]
[343883600,1732983070109,-2170.53,0.00030136,3]
[343883601,1732983070119,-810.68,0.00030136,3]
[343883602,1732983070129,-762.47,0.00030136,3]
[343883603,1732983070138,-3038.34,0.00030136,3]
[343883604,1732983070147,-544.19,0.00030136,3]
[343883605,1732983070157,-2471.81,0.00030136,3]
[343883606,1732983070166,-483.25498786,0.00030136,3]
[343883607,1732983070175,-2025.38,0.00030136,3]
[343883608,1732983070185,-254.55670712,0.00030136,3]
[343883609,1732983070195,-598.57,0.00030136,3]
[343883610,1732983070204,-1751.25,0.00030136,3]
[343883611,1732983070214,-500.0,0.00030136,3]
[343883612,1732983070224,-737.73,0.00030136,3]
[343883613,1732983070234,-1526.2,0.00030136,2]
[343883614,1732983070244,-500.29,0.00030136,3]
[343883615,1732983070254,-4675.02,0.00030136,3]
[343883616,1732983070264,-801.78,0.00030136,3]
[343883617,1732983070274,-573.56,0.00030136,3]
[343883618,1732983070284,-961.92360974,0.00030137,3]
[343883619,1732983070295,-180.04026271,0.00030137,2]
[343883620,1732983070305,-500.0,0.00030137,60]
[343883621,1732983070314,-9586.0977501,0.00030141,28]
[343883622,1732983070323,-5036.56395527,0.0003015,23]
[343883623,1732983070333,-5000.0,0.0003015,23]
[343883624,1732983070342,-5000.0,0.0003015,23]
[343883625,1732983070352,-5000.0,0.0003015,24]
[343883626,1732983070362,-3045.65363078,0.0003015,28]
[343883627,1732983070372,-5000.0,0.00030172,27]
[343883628,1732983070382,-344.21,0.000302,31]
[343883629,1732983070391,-344.21,0.000302,31]
[343883630,1732983070401,-344.21,0.000302,31]
[343883631,1732983070411,-344.21,0.000302,31]
[343883632,1732983070420,-344.21,0.000302,31]
[343883633,1732983070430,-344.21,0.000302,31]
[343883634,1732983070440,-344.21,0.000302,31]
[343883635,1732983070449,-344.21,0.000302,31]
[343883636,1732983070459,-344.21,0.000302,31]
[343883637,1732983070469,-344.21,0.000302,31]
[343883638,1732983070478,-344.21,0.000302,31]
[343883639,1732983070488,-344.21,0.000302,31]
[343883640,1732983070498,-344.21,0.000302,31]
[343883641,1732983070507,-344.21,0.000302,31]
[343883642,1732983070516,-344.21,0.000302,31]
[343883643,1732983070526,-344.21,0.000302,31]
[343883644,1732983070539,-7186.47598847,0.00030207,29]
[343883645,1732983070549,-7922.74505753,0.00030208,26]
[343883646,1732983070559,-5000.0,0.00030219,23]
[343883647,1732983070568,-500.0,0.00030281,14]
[343883648,1732983070579,-500.0,0.0003029,14]
[343883649,1732983070591,-500.0,0.00030299,14]
[343883650,1732983070601,-500.0,0.00030307,14]
[343883651,1732983070611,-500.0,0.00030316,14]
[343883652,1732983070621,-500.0,0.00030325,14]
[343883653,1732983070631,-500.0,0.00030334,14]
[343883654,1732983070641,-500.0,0.00030343,14]
[343883655,1732983070653,-500.0,0.00030351,14]
[343883656,1732983070663,-500.0,0.0003036,14]
[343883657,1732983070674,-294.0,0.0003037,28]
[343883658,1732983070684,-678.64641569,0.00030387,2]
[343883659,1732983070694,-1287.55042006,0.00030387,2]
[343883660,1732983070705,-297.240904,0.00030396,7]
[343883661,1732983070715,-151.0,0.00030396,7]
[343883662,1732983070725,-300.0,0.000304,3]
[343883663,1732983070736,-500.0,0.0003041,3]
[343883664,1732983070747,-851.42,0.0003041,3]
[343883665,1732983070756,-550.61,0.0003041,3]
[343883666,1732983070766,-527.99,0.0003041,3]
[343883667,1732983070776,-873.22,0.0003041,3]
[343883668,1732983070786,-500.0,0.0003041,3]
[343883669,1732983070795,-526.13,0.0003041,3]
[343883670,1732983070805,-500.0,0.0003041,3]
[343883671,1732983070815,-644.87,0.0003041,3]
[343883672,1732983070826,-570.52,0.0003041,3]
[343883673,1732983070836,-500.0,0.0003041,3]
[343883674,1732983070845,-571.17,0.0003041,3]
[343883675,1732983070856,-500.0,0.0003041,3]
[343883676,1732983070867,-572.47,0.0003041,3]
[343883677,1732983070877,-524.73,0.0003041,3]
[343883678,1732983070887,-1331.31,0.0003041,3]
[343883679,1732983070897,-501.61,0.0003041,3]
[343883680,1732983070907,-3084.57,0.0003041,3]
[343883681,1732983070917,-648.88,0.0003041,3]
[343883682,1732983070926,-804.95,0.0003041,3]
[343883683,1732983070936,-160.48992107,0.0003041,3]
[343883684,1732983070947,-548.5,0.0003041,3]
[343883685,1732983070958,-648.64452741,0.0003041,3]
[343883686,1732983070967,-729.85,0.0003041,3]
[343883687,1732983070977,-1025.04,0.0003041,3]
[343883688,1732983070987,-558.52,0.0003041,3]
[343883689,1732983070997,-901.86,0.0003041,3]
[343883690,1732983071007,-8674.29,0.0003041,3]
[343883691,1732983071017,-1839.97,0.0003041,3]
[343883692,1732983071026,-834.16,0.0003041,3]
[343883693,1732983071036,-3724.18,0.0003041,3]
[343883694,1732983071047,-2170.53,0.0003041,3]
[343883695,1732983071059,-810.68,0.0003041,3]
[343883696,1732983071068,-762.47,0.0003041,3]
[343883697,1732983071079,-3038.34,0.0003041,3]
[343883698,1732983071088,-544.19,0.0003041,3]
[343883699,1732983071098,-2471.81,0.0003041,3]
[343883700,1732983071107,-2025.38,0.0003041,3]
[343883701,1732983071117,-598.57,0.0003041,3]
[343883702,1732983071127,-1751.25,0.0003041,3]
[343883703,1732983071137,-602.49510793,0.0003041,3]
[343883704,1732983071147,-737.73,0.0003041,3]
[343883705,1732983071157,-1526.2,0.0003041,2]
[343883706,1732983071167,-500.29,0.0003041,3]
[343883707,1732983071177,-4675.02,0.0003041,3]
[343883708,1732983071186,-801.78,0.0003041,3]
[343883709,1732983071196,-573.56,0.0003041,3]
[343883710,1732983071205,-10109.999999,0.0003043,2]
[343883711,1732983071214,-500.0,0.00030442,5]
[343883712,1732983071224,-4636.07637619,0.00030463,7]
[343883713,1732983071234,-14231173.89993878,0.00030487,10]
[343883714,1732983071243,-3141962.17747913,0.00030487,10]
[343883715,1732983071432,-12098.30377413,0.00030487,10]
[343883716,1732983071444,-18553.33600448,0.00030487,10]
[343883717,1732983071456,-339.80261161,0.00030487,10]
[343883718,1732983071535,-334.42675404,0.00024931,3]
[343883719,1732983071546,-1465.5,0.000274,2]
[343883720,1732983071555,-623.81,0.00029041,3]
[343883721,1732983071565,-623.81,0.00029315,3]
[343883722,1732983071575,-623.81,0.00029589,3]
[343883723,1732983071584,-623.81,0.00029863,3]
[343883724,1732983071594,-623.81,0.00030136,3]
[343883725,1732983071603,-623.81,0.0003041,3]
[343883726,1732983071613,-205726.53670366,0.00030487,10]
[343883727,1732983071624,-650.92751539,0.00030487,10]
[343883729,1732983315157,207.13304899,0.0001,2]
[343883730,1732983593669,162.833442,0.00013973,2]
[343883783,1732984232416,-1169.27083333,0.0002,2]
[343883784,1732984232427,-119.5324128,0.000241,2]
[343883831,1732984240403,-966.03,0.000241,2]
[343883843,1732984243416,-2549.5675872,0.000241,2]
[343883844,1732984243426,-162.833442,0.00024224,2]
[343883845,1732984243436,-300.0,0.00024656,2]
[343883846,1732984243446,-300.0,0.00024656,2]
[343883847,1732984243455,-104.79789375,0.00024657,7]
[343883848,1732984243583,-46.20210625,0.00024657,7]
[343883850,1732984243593,-500.0,0.00024657,3]
[343883851,1732984243602,-500.0,0.00024657,3]
[343883852,1732984243611,-500.0,0.00024657,3]
[343883853,1732984243624,-500.0,0.00024657,3]
[343883854,1732984243641,-211.11385472,0.00024657,3]
[343883862,1732984246205,-213.25223116,0.00024657,3]
[343883863,1732984246214,-500.0,0.00024657,3]
[343883864,1732984246224,-500.0,0.00024657,3]
[343883865,1732984246234,-500.0,0.00024657,3]
[343883866,1732984246243,-500.0,0.00024657,3]
[343883867,1732984246253,-500.0,0.00024657,3]
[343883868,1732984246263,-500.0,0.00024657,3]
[343883869,1732984246273,-500.0,0.00024657,3]
[343883870,1732984246282,-500.0,0.00024657,3]
[343883871,1732984246292,-500.0,0.00024657,3]
[343883872,1732984246302,-500.0,0.00024657,3]
[343883873,1732984246313,-500.0,0.00024657,3]
[343883874,1732984246322,-500.0,0.00024657,3]
[343883875,1732984246332,-500.0,0.00024657,3]
[343883876,1732984246342,-500.0,0.00024657,3]
[343883877,1732984246351,-500.0,0.00024657,3]
[343883878,1732984246362,-500.0,0.00024657,3]
[343883879,1732984246373,-500.0,0.00024657,3]
[343883880,1732984246383,-500.0,0.00024657,3]
[343883881,1732984246393,-500.0,0.00024657,3]
[343883882,1732984246402,-500.0,0.00024657,3]
[343883883,1732984246412,-500.0,0.00024657,3]
[343883884,1732984246421,-500.0,0.00024657,3]
[343883885,1732984246431,-500.0,0.00024657,2]
[343883886,1732984246440,-500.0,0.00024657,3]
[343883887,1732984246450,-500.0,0.00024657,3]
[343883888,1732984246460,-500.0,0.00024657,3]
[343883889,1732984246469,-500.0,0.00024657,3]
[343883890,1732984246479,-500.0,0.00024657,3]
[343883891,1732984246489,-500.0,0.00024657,3]
[343883892,1732984246499,-500.0,0.00024657,3]
[343883893,1732984246508,-599.4137055,0.00024657,3]
[343883894,1732984246518,-500.0,0.00024657,3]
[343883895,1732984246527,-692.74,0.00024657,3]
[343883896,1732984246536,-500.0,0.00024657,3]
[343883897,1732984246547,-500.0,0.00024657,3]
[343883898,1732984246557,-500.0,0.00024657,3]
[343883899,1732984246567,-500.0,0.00024657,3]
[343883900,1732984246577,-1169.27083333,0.00024657,3]
[343883901,1732984246586,-1169.27083333,0.00024657,3]
[343883902,1732984246596,-500.0,0.00024657,3]
[343883903,1732984246606,-500.0,0.00024657,3]
[343883904,1732984246620,-593.81561378,0.0002483,2]
[343883905,1732984246629,-520.69028254,0.0002493,3]
[343883906,1732984246639,-500.0,0.0002493,3]
[343883907,1732984246648,-520.30589891,0.0002493,3]
[343883908,1732984246660,-500.0,0.0002493,3]
[343883909,1732984246670,-193.00693151,0.00024931,2]
[343883910,1732984246679,-292.387826,0.00024931,7]
[343883911,1732984246689,-556.17517174,0.00024931,3]
[343883912,1732984246698,-641.15789756,0.00024931,3]
[343883913,1732984246707,-193.99292907,0.00024931,3]
[343883914,1732984246716,-500.0,0.00024931,3]
[343883915,1732984246725,-645.17475203,0.00024931,3]
[343883916,1732984246736,-500.0,0.00024931,3]
[343883917,1732984246745,-500.0,0.00024931,3]
[343883918,1732984246754,-438.62340157,0.00024931,3]
[343883919,1732984246763,-500.0,0.00024931,3]
[343883920,1732984246772,-500.0,0.00024931,3]
[343883921,1732984246781,-597.21028044,0.00024931,3]
[343883922,1732984246790,-500.0,0.00024931,3]
[343883923,1732984246799,-500.0,0.00024931,3]
[343883924,1732984246808,-549.58364406,0.00024931,3]
[343883925,1732984246818,-642.44,0.00024931,3]
[343883926,1732984246827,-500.0,0.00024931,3]
[343883927,1732984246835,-503.26770686,0.00024931,3]
[343883928,1732984246845,-500.0,0.00024931,3]
[343883929,1732984246854,-500.0,0.00024931,3]
[343883930,1732984246864,-500.0,0.00024931,3]
[343883931,1732984246873,-500.0,0.00024931,3]
[343883932,1732984246882,-500.0,0.00024931,3]
[343883933,1732984246891,-588.60737281,0.00024931,3]
[343883934,1732984246900,-500.0,0.00024931,3]
[343883935,1732984246910,-500.0,0.00024931,3]
[343883936,1732984246920,-500.0,0.00024931,3]
[343883937,1732984246932,-500.0,0.00024931,2]
[343883938,1732984246944,-500.0,0.00024931,3]
[343883939,1732984246954,-500.60088121,0.00024931,3]
[343883940,1732984246964,-647.19362329,0.00024931,3]
[343883941,1732984246974,-500.0,0.00024931,3]
[343883942,1732984246984,-500.0,0.00024931,3]
[343883943,1732984246993,-500.0,0.00024931,3]
[343883944,1732984247003,-500.0,0.00024931,3]
[343883945,1732984247015,-601.35734328,0.00024931,3]
[343883946,1732984247025,-692.74,0.00024931,3]
[343883947,1732984247035,-500.0,0.00024931,3]
[343883948,1732984247044,-500.0,0.00024931,3]
[343883949,1732984247055,-552.27887902,0.00024931,3]
[343883950,1732984247064,-500.0,0.00024931,3]
[343883951,1732984247073,-1169.27083333,0.00024931,3]
[343883952,1732984247083,-500.0,0.00024931,3]
[343883953,1732984247094,-2289.09,0.0002499,10]
[343883954,1732984247104,-4171.91,0.0002499,10]
[343883955,1732984247113,-155.01550887,0.00025,2]
[343883956,1732984247123,-52824.4505018,0.00025,2]
[343883957,1732984247132,-1189.5172187,0.00025,2]
[343883958,1732984247142,-347.70282279,0.00025,2]
[343883959,1732984247151,-375.265916,0.00025,5]
[343883960,1732984247161,-830.20372247,0.00025,2]
[343883961,1732984247171,-200.0,0.00025,7]
[343883962,1732984247180,-617.06033891,0.00025204,3]
[343883963,1732984247189,-500.0,0.00025204,3]
[343883964,1732984247199,-289.97608118,0.00025205,3]
[343883965,1732984247208,-500.0,0.00025205,3]
[343883966,1732984247217,-500.0,0.00025205,3]
[343883967,1732984247227,-500.0,0.00025205,3]
[343883968,1732984247236,-610.02,0.00025205,3]
[343883969,1732984247246,-459.75203623,0.00025205,3]
[343883970,1732984247255,-500.0,0.00025205,3]
[343883971,1732984247266,-297.99539347,0.00025205,3]
[343883972,1732984247276,-500.0,0.00025205,3]
[343883973,1732984247285,-500.0,0.00025205,3]
[343883974,1732984247295,-500.0,0.00025205,3]
[343883975,1732984247304,-621.39,0.00025205,3]
[343883976,1732984247313,-475.47534274,0.00025205,3]
[343883977,1732984247322,-500.0,0.00025205,3]
[343883978,1732984247331,-500.0,0.00025205,3]
[343883979,1732984247340,-500.0,0.00025205,2]
[343883980,1732984247350,-525.04348463,0.00025205,3]
[343883981,1732984247359,-500.0,0.00025205,3]
[343883982,1732984247368,-247.75233762,0.00025205,3]
[343883983,1732984247382,-197.3056815,0.00025205,3]
[343883984,1732984247391,-500.0,0.00025205,3]
[343883985,1732984247401,-692.74,0.00025205,3]
[343883986,1732984247410,-500.0,0.00025205,3]
[343883987,1732984247420,-500.0,0.00025205,3]
[343883988,1732984247429,-603.58947602,0.00025205,3]
[343883989,1732984247438,-500.0,0.00025205,3]
[343883990,1732984247447,-1062.0,0.0002528,2]
[343883991,1732984247457,-500.0,0.00025479,3]
[343883992,1732984247466,-500.0,0.00025479,3]
[343883993,1732984247475,-246.66304248,0.00025479,3]
[343883994,1732984247485,-550.22299912,0.00025479,3]
[343883995,1732984247495,-303.94000038,0.00025479,3]
[343883996,1732984247504,-168.48501542,0.00025479,3]
[343883997,1732984247513,-500.0,0.00025479,3]
[343883998,1732984247522,-500.0,0.00025479,3]
[343883999,1732984247532,-500.0,0.00025479,3]
[343884000,1732984247543,-500.0,0.00025479,2]
[343884001,1732984247554,-500.0,0.00025479,3]
[343884002,1732984247563,-500.0,0.00025479,3]
[343884003,1732984247573,-692.74,0.00025479,3]
[343884004,1732984247583,-500.0,0.00025479,3]
[343884005,1732984247599,-500.0,0.00025479,3]
[343884006,1732984247614,-500.0,0.00025479,3]
[343884007,1732984247627,-593.81561373,0.00025609,2]
[343884008,1732984247637,-500.0,0.00025753,3]
[343884009,1732984247647,-500.0,0.00025753,3]
[343884010,1732984247771,-500.0,0.00025753,3]
[343884011,1732984247782,-500.0,0.00025753,3]
[343884012,1732984247791,-500.0,0.00025753,3]
[343884013,1732984247800,-500.0,0.00025753,2]
[343884014,1732984247809,-500.0,0.00025753,3]
[343884015,1732984247819,-500.0,0.00025753,3]
[343884016,1732984247828,-692.74,0.00025753,3]
[343884017,1732984247837,-500.0,0.00025753,3]
[343884018,1732984247846,-500.0,0.00025753,3]
[343884019,1732984247855,-500.0,0.00025753,3]
[343884020,1732984247865,-162.71102527,0.00026027,3]
[343884021,1732984247875,-500.0,0.00026027,3]
[343884022,1732984247885,-500.0,0.00026027,3]
[343884023,1732984247894,-500.0,0.00026027,3]
[343884024,1732984247903,-500.0,0.00026027,3]
[343884025,1732984247913,-552.54366796,0.00026027,2]
[343884026,1732984247922,-500.0,0.00026027,3]
[343884027,1732984247931,-500.0,0.00026027,3]
[343884028,1732984247940,-692.74,0.00026027,3]
[343884029,1732984247949,-500.0,0.00026027,3]
[343884030,1732984247958,-500.0,0.00026027,3]
[343884031,1732984247968,-500.0,0.00026027,3]
[343884032,1732984247979,-500.0,0.00026301,3]
[343884033,1732984247988,-500.0,0.00026301,3]
[343884034,1732984248002,-500.0,0.00026301,3]
[343884035,1732984248013,-500.0,0.00026301,3]
[343884036,1732984248025,-500.0,0.00026301,3]
[343884037,1732984248035,-502.53679489,0.00026301,3]
[343884038,1732984248045,-692.74,0.00026301,3]
[343884039,1732984248055,-500.0,0.00026301,3]
[343884040,1732984248065,-500.0,0.00026301,3]
[343884041,1732984248074,-593.81561373,0.00026389,2]
[343884042,1732984248084,-500.0,0.00026575,3]
[343884043,1732984248095,-500.0,0.00026575,3]
[343884044,1732984248104,-500.0,0.00026575,3]
[343884045,1732984248112,-500.0,0.00026575,3]
[343884046,1732984248121,-550.78677887,0.00026575,3]
[343884047,1732984248131,-692.74,0.00026575,3]
[343884048,1732984248141,-500.0,0.00026575,3]
[343884049,1732984248151,-500.0,0.00026575,3]
[343884050,1732984248160,-500.0,0.00026651,7]
[343884051,1732984248170,-420.0,0.0002672,2]
[343884052,1732984248179,-500.0,0.00026849,3]
[343884053,1732984248189,-341.23118714,0.00026849,3]
[343884054,1732984248199,-500.0,0.00026849,3]
[343884055,1732984248209,-500.0,0.00026849,3]
[343884056,1732984248219,-692.74,0.00026849,3]
[343884057,1732984248229,-500.0,0.00026849,3]
[343884058,1732984248239,-500.0,0.00026849,3]
[343884059,1732984248248,-500.0,0.00027123,3]
[343884060,1732984248258,-443.8187897,0.00027123,3]
[343884061,1732984248267,-500.0,0.00027123,3]
[343884062,1732984248277,-692.74,0.00027123,3]
[343884063,1732984248290,-500.0,0.00027123,3]
[343884064,1732984248307,-500.0,0.00027123,3]
[343884065,1732984248317,-593.81561373,0.00027168,2]
[343884066,1732984248327,-500.0,0.00027397,3]
[343884067,1732984248337,-507.29957342,0.00027397,2]
[343884068,1732984248346,-500.0,0.00027397,3]
[343884069,1732984248356,-692.74,0.00027397,3]
[343884070,1732984248365,-500.0,0.00027397,3]
[343884071,1732984248376,-500.0,0.00027397,3]
[343884072,1732984248385,-1614.49,0.000275,2]
[343884073,1732984248395,-300.0,0.000275,13]
[343884074,1732984248404,-617.0,0.000275,2]
[343884075,1732984248413,-500.0,0.00027671,3]
[343884076,1732984248423,-576.8992489,0.00027671,3]
[343884077,1732984248432,-692.74,0.00027671,3]
[343884078,1732984248441,-500.0,0.00027671,3]
[343884079,1732984248450,-500.0,0.00027671,3]
[343884080,1732984248460,-169.20257303,0.00027945,3]
[343884081,1732984248469,-692.74,0.00027945,3]
[343884082,1732984248478,-500.0,0.00027945,3]
[343884083,1732984248488,-500.0,0.00027945,3]
[343884084,1732984248497,-593.81561373,0.00027947,2]
[343884085,1732984248506,-692.74,0.00028219,3]
[343884086,1732984248515,-500.0,0.00028219,3]
[343884087,1732984248525,-500.0,0.00028219,3]
[343884088,1732984248535,-151.0,0.00028258,2]
[343884089,1732984248544,-500.0,0.00028295,7]
[343884090,1732984248554,-692.74,0.00028493,3]
[343884091,1732984248563,-500.0,0.00028493,3]
[343884092,1732984248572,-448.42071454,0.00028493,3]
[343884093,1732984248582,-593.81561373,0.00028726,2]
[343884094,1732984248591,-692.74,0.00028767,3]
[343884095,1732984248600,-500.0,0.00028767,3]
[343884096,1732984248610,-587.0,0.00028957,2]
[343884097,1732984248619,-692.74,0.00029041,3]
[343884098,1732984248630,-500.0,0.00029041,3]
[343884099,1732984248639,-435.169,0.00029044,15]
[343884100,1732984248649,-692.74,0.00029315,3]
[343884101,1732984248658,-500.0,0.00029315,3]
[343884102,1732984248668,-593.81561373,0.00029506,2]
[343884103,1732984248677,-692.74,0.00029589,3]
[343884104,1732984248687,-350.16261977,0.00029589,3]
[343884105,1732984248697,-692.74,0.00029863,3]
[343884106,1732984248707,-500.0,0.00029939,7]
[343884107,1732984248717,-221.0,0.0003,2]
[343884108,1732984248730,-692.74,0.00030136,3]
[343884109,1732984248739,-174.13784083,0.00030137,2]
[343884110,1732984248748,-593.81561373,0.00030285,2]
[343884111,1732984248757,-500.0,0.00030373,5]
[343884112,1732984248766,-172.66808172,0.00030384,2]
[343884113,1732984248776,-3438.01231499,0.00030384,2]
[343884114,1732984248785,-193.00693151,0.00030385,7]
[343884115,1732984248794,-193.00693151,0.00030385,7]
[343884116,1732984248803,-49461.04151113,0.00030385,10]
[343884117,1732984248852,-1036469.97289337,0.00030385,10]
[343884118,1732984298664,9522.0,0.00022,30]
[343884119,1732984359145,162.833442,0.00013973,2]
[343884120,1732984393495,236.88035098,0.000265,120]
[343884152,1732984981089,162.833442,0.00013973,2]
[343884154,1732985169190,191.68,0.00015,2]
[343884190,1732985432516,-1169.27083333,0.0002,2]
[343884192,1732985432527,-167.834019,0.00023287,2]
[343884194,1732985432536,-2944.30821898,0.00023353,2]
[343884224,1732985443555,-472.71117132,0.00023353,2]
[343884225,1732985443565,-573.5483723,0.00023353,2]
[343884226,1732985443577,-264.75100129,0.00024099,2]
[343884238,1732985446417,-19.64267981,0.00024099,2]
[343884239,1732985446430,-300.0,0.00024099,2]
[343884240,1732985446440,-300.0,0.00024099,2]
[343884241,1732985446450,-189.38371424,0.000241,2]
[343884242,1732985446460,-363941.06462807,0.000241,5]
[343884243,1732985446473,-6268.67782989,0.000241,5]
[343884248,1732985730569,162.833442,0.00013973,2]
[343885063,1732986332281,-8981.18489926,0.0003038,120]
[343885064,1732986332307,-1853.43667624,0.0003038,120]
[343885065,1732986332330,-187.0,0.0003038,30]
[343885066,1732986332354,-282913.96925221,0.0003038,60]
[343885067,1732986332379,-1718.51744864,0.0003038,120]
[343885068,1732986332403,-158.07199317,0.0003038,120]
[343885069,1732986332428,-1554.12532264,0.0003038,120]
[343885070,1732986332453,-1542.10655156,0.0003038,32]
[343885071,1732986332478,-257.42837107,0.0003038,120]
[343885072,1732986332503,-5462.66,0.0003038,120]
[343885073,1732986332527,-13616.28557626,0.0003038,30]
[343885074,1732986332552,-153.37,0.0003038,120]
[343885075,1732986332577,-620.63496667,0.0003038,29]
[343885076,1732986332603,-538.0,0.0003038,120]
[343885077,1732986332628,-2000.0,0.0003038,30]
[343885078,1732986332653,-2000.0,0.0003038,30]
[343885079,1732986332679,-799.0,0.0003038,30]
[343885080,1732986332706,-2000.0,0.0003038,30]
[343885081,1732986332732,-2000.0,0.0003038,30]